bitfinex/quotes_ETHUSD_20250705
["timestamp","ask_amount","ask_price","bid_price","bid_amount"]
[1751719977533,0.042912,2521.5,2521.4,11.9450506]
[1751719983427,0.41438618,2521.5,2521.4,11.9450506]
[1751719984129,0.41638618,2521.5,2521.4,11.9450506]
[1751719996572,0.41638618,2521.5,2521.4,3.9660506]
[1751719996740,0.41638618,2521.5,2521.4,11.9440506]
[1751719997682,0.41638618,2521.5,2521.4,3.9660506]
[1751719997836,0.41638618,2521.5,2521.4,11.9440506]
[1751720003266,0.41638618,2521.5,2521.3,0.1976]
[1751720003457,0.044912,2521.5,2521.4,7.978]
[1751720003766,0.41690259,2521.5,2521.4,7.978]
[1751720004636,0.41690259,2521.5,2521.4,11.9440506]
[1751720006869,0.41690259,2521.5,2521.4,7.978]
[1751720009179,0.41690259,2521.5,2521.4,11.9440506]
[1751720009488,0.41690259,2521.5,2521.4,7.978]
[1751720012083,0.41690259,2521.5,2521.3,3.96611708]
[1751720012285,0.044912,2521.5,2521.4,7.978]
[1751720012462,0.41688863,2521.5,2521.4,7.978]
[1751720020402,0.41685657,2521.5,2521.4,7.978]
[1751720022606,0.61445657,2521.5,2521.4,7.978]
[1751720032718,0.61445657,2521.5,2521.4,11.9440506]
[1751720037636,0.6147574,2521.5,2521.4,7.978]
[1751720038026,0.6147574,2521.5,2521.4,11.9440506]
[1751720038930,0.242512,2521.5,2521.4,7.978]
[1751720039227,0.242512,2521.5,2521.4,11.9440506]
[1751720039924,0.242512,2521.5,2521.4,7.978]
[1751720040924,0.242512,2521.5,2521.4,11.9440506]
[1751720043331,0.242512,2521.5,2521.4,7.978]
[1751720048517,0.242512,2521.5,2521.4,11.9440506]
[1751720049626,0.044912,2521.5,2521.4,14.31487489]
[1751720052539,0.41709428,2521.5,2521.4,14.31487489]
[1751720057449,0.41709428,2521.5,2521.4,7.976]
[1751720057652,0.41709428,2521.5,2521.4,11.9420506]
[1751720058848,0.41709428,2521.5,2521.4,7.976]
[1751720059435,0.41709428,2521.5,2521.4,11.9420506]
[1751720068840,0.41709428,2521.5,2521.4,3.9660506]
[1751720069035,0.41709428,2521.5,2521.4,11.9420506]
[1751720070859,0.41709428,2521.5,2521.4,7.976]
[1751720071033,0.41709428,2521.5,2521.4,7.975]
[1751720071428,0.41709428,2521.5,2521.3,4.16373166]
[1751720071633,0.37218228,2521.4,2521.3,4.16373166]
[1751720071935,0.37218228,2521.4,2521.3,12.13873166]
[1751720076059,0.044912,2521.5,2521.3,12.13873166]
[1751720076266,0.37218236,2521.4,2521.3,12.13873166]
[1751720077763,0.37218236,2521.4,2521.3,8.1726]
[1751720079365,0.37218236,2521.4,2521.3,12.1388079]
[1751720079581,0.37218236,2521.4,2521.3,7.975]
[1751720084975,0.497412,2521.5,2521.3,7.975]
[1751720085144,0.37219196,2521.4,2521.3,7.975]
[1751720087975,0.3721874,2521.4,2521.3,7.975]
[1751720089474,0.3721874,2521.4,2521.2,3.96630797]
[1751720089675,0.497412,2521.5,2521.3,7.975]
[1751720089872,0.37218536,2521.4,2521.1,4.16405471]
[1751720090064,0.37218536,2521.3,2521.2,7.974]
[1751720093782,0.37218536,2521.3,2521.1,3.96651886]
[1751720093975,0.1976,2521.4,2521.2,7.975]
[1751720094179,0.3720747,2521.3,2521.2,7.975]
[1751720099291,0.37202053,2521.3,2521.2,7.975]
[1751720100787,0.37202053,2521.3,2521.1,3.96651886]
[1751720101096,0.1976,2521.4,2521.0,3.96667191]
[1751720101097,0.56962053,2521.2,2521.0,3.96667191]
[1751720101261,0.37202053,2521.1,2521.0,3.96667191]
[1751720101462,0.37202053,2521.1,2521.0,11.94067191]
[1751720116103,0.37202053,2521.1,2521.0,12.89347191]
[1751720119825,0.242512,2521.5,2521.2,3.96623511]
[1751720119977,0.37217963,2521.4,2521.3,7.973]
[1751720120707,0.37217963,2521.4,2521.3,11.9392079]
[1751720125292,0.37217963,2521.4,2521.3,7.973]
[1751720125492,0.37217963,2521.4,2521.3,11.9392079]
[1751720125912,0.37217963,2521.4,2521.3,7.973]
[1751720126810,0.37217963,2521.4,2521.3,11.9392079]
[1751720128716,0.37211658,2521.4,2521.3,11.9392079]
[1751720131326,0.37211044,2521.4,2521.3,11.9392079]
[1751720132619,0.37211044,2521.4,2521.3,7.973]
[1751720134023,0.37211044,2521.4,2521.2,3.96636444]
[1751720134225,1.23581902,2521.5,2521.3,7.973]
[1751720134522,0.37212102,2521.4,2521.3,7.973]
[1751720137820,0.37213824,2521.4,2521.3,7.973]
[1751720140631,0.37216766,2521.4,2521.3,7.973]
[1751720140829,6.97744911,2521.4,2521.3,7.972]
[1751720141011,7.23234911,2521.4,2521.3,7.972]
[1751720141330,7.43922872,2521.4,2521.3,7.972]
[1751720141530,7.43922872,2521.4,2520.9,3.96776674]
[1751720141531,11.40532284,2521.4,2520.9,3.96776674]
[1751720141732,0.1976,2521.2,2521.0,7.972]
[1751720142034,0.37216766,2521.1,2521.0,7.972]
[1751720142826,0.37216766,2521.1,2521.0,11.93867988]
[1751720160042,0.1976,2521.2,2521.1,3.96652254]
[1751720161438,0.56967585,2521.2,2521.1,3.96652254]
[1751720167748,0.56974816,2521.2,2521.1,3.96652254]
[1751720168920,0.37214816,2521.2,2521.1,4.78072254]
[1751720170641,0.40447961,2521.4,2521.1,4.78072254]
[1751720170962,0.37220646,2521.3,2521.2,7.971]
[1751720171709,0.37220776,2521.3,2521.2,7.971]
[1751720173655,0.37220951,2521.3,2521.2,7.971]
[1751720179678,0.37220951,2521.3,2521.2,11.93736522]
[1751720180854,0.37220951,2521.3,2521.2,7.971]
[1751720184845,0.37220951,2521.3,2521.2,11.93736522]
[1751720185192,0.1976,2521.4,2521.3,3.9662079]
[1751720185343,0.56978012,2521.4,2521.3,3.9662079]
[1751720188848,0.37218012,2521.4,2521.3,3.9662079]
[1751720189048,0.37218012,2521.4,2521.3,5.65890501]
[1751720190877,0.044912,2521.5,2521.4,3.9660506]
[1751720191090,0.41693486,2521.5,2521.4,11.9360506]
[1751720191783,0.41690066,2521.5,2521.4,11.9360506]
[1751720194782,0.41684579,2521.5,2521.4,11.9360506]
[1751720197591,0.41681709,2521.5,2521.4,11.9360506]
[1751720197778,0.41681709,2521.5,2521.4,13.79832534]
[1751720198288,0.41681709,2521.5,2521.4,13.79732534]
[1751720203988,0.41681709,2521.5,2521.4,9.83127474]
[1751720204690,0.41681709,2521.5,2521.4,13.79732534]
[1751720208408,0.41681709,2521.5,2521.4,9.83127474]
[1751720208609,0.41681709,2521.5,2521.4,7.969]
[1751720210312,0.41681709,2521.5,2521.4,11.9350506]
[1751720212314,0.41681709,2521.5,2521.4,7.969]
[1751720219906,0.41681709,2521.5,2521.4,11.9350506]
[1751720220521,0.41681709,2521.5,2521.4,7.969]
[1751720221423,0.41709611,2521.5,2521.4,7.969]
[1751720224891,0.41709611,2521.5,2521.4,11.9350506]
[1751720225525,0.41709611,2521.5,2521.4,7.969]
[1751720226426,0.41709611,2521.5,2521.4,11.9350506]
[1751720228030,0.41709611,2521.5,2521.4,7.969]
[1751720241251,0.41709611,2521.5,2521.4,11.9350506]
[1751720243862,0.41709611,2521.5,2521.4,7.969]
[1751720244358,0.41709611,2521.5,2521.4,11.9350506]
[1751720244765,0.41709611,2521.5,2521.4,7.969]
[1751720246947,0.41709611,2521.5,2521.4,7.966]
[1751720247300,1.45335535,2521.5,2521.4,7.966]
[1751720251484,1.45335535,2521.5,2521.2,4.16387857]
[1751720251768,0.37218411,2521.4,2521.3,7.966]
[1751720254681,0.37219417,2521.4,2521.3,7.966]
[1751720256578,0.37219417,2521.4,2521.3,11.9322079]
[1751720264102,0.37219417,2521.4,2521.3,12.85181192]
[1751720267702,0.37219417,2521.4,2521.3,11.9322079]
[1751720279612,0.25219417,2521.4,2521.3,11.9322079]
[1751720285097,0.25219417,2521.4,2521.3,7.965]
[1751720285098,0.50709417,2521.4,2521.3,7.965]
[1751720289718,0.50709417,2521.4,2521.3,11.9312079]
[1751720290218,0.2549,2521.4,2521.3,11.9312079]
[1751720290418,5.74060975,2521.5,2521.4,3.9660506]
[1751720290717,0.242512,2521.5,2521.4,3.9660506]
[1751720291588,0.61467268,2521.5,2521.4,3.9660506]
[1751720293220,0.61467431,2521.5,2521.4,3.9660506]
[1751720295823,0.61467431,2521.5,2521.3,11.9311284]
[1751720296120,0.37216231,2521.4,2521.3,11.9311284]
[1751720300827,0.242512,2521.5,2521.4,3.9660506]
[1751720300996,0.61468109,2521.5,2521.4,3.9660506]
[1751720301196,0.61468109,2521.5,2521.3,11.93112411]
[1751720301490,0.37216909,2521.4,2521.3,11.93112411]
[1751720304927,0.37216909,2521.4,2521.3,11.93012411]
[1751720311231,0.37219073,2521.4,2521.3,11.93012411]
[1751720316032,0.23165296,2521.5,2521.4,3.9660506]
[1751720320536,0.23165296,2521.5,2521.3,11.93012443]
[1751720328039,0.37223928,2521.4,2521.3,11.93012443]
[1751720330060,0.37223928,2521.4,2521.3,7.964]
[1751720331350,0.37223928,2521.4,2521.3,7.963]
[1751720335155,0.37223928,2521.4,2521.3,7.965]
[1751720335522,0.37323928,2521.4,2521.3,7.965]
[1751720337161,0.37323928,2521.4,2521.3,11.9312079]
[1751720338656,0.37323928,2521.4,2521.3,7.965]
[1751720341968,0.37322422,2521.4,2521.3,7.965]
[1751720343962,0.37322422,2521.4,2521.3,11.9312079]
[1751720344260,0.37322422,2521.4,2521.3,7.965]
[1751720345057,0.37322422,2521.4,2521.3,0.002]
[1751720345265,0.37322422,2521.4,2521.3,7.964]
[1751720351356,0.37322422,2521.4,2521.3,0.002]
[1751720351557,0.001,2521.4,2521.3,7.964]
[1751720351786,0.37322378,2521.4,2521.3,7.964]
[1751720355081,0.37322378,2521.4,2521.3,0.002]
[1751720355382,1.66059596,2521.4,2521.3,7.964]
[1751720355686,1.86748503,2521.4,2521.3,7.964]
[1751720356282,0.83501285,2521.4,2521.3,7.964]
[1751720356885,0.83501285,2521.4,2521.3,7.963]
[1751720358265,0.58011285,2521.4,2521.3,7.963]
[1751720362598,0.58011285,2521.4,2521.3,11.9292079]
[1751720363185,0.58011285,2521.4,2521.3,12.7500079]
[1751720363392,0.57996933,2521.4,2521.3,12.7500079]
[1751720366422,0.37308026,2521.4,2521.3,15.16905307]
[1751720370109,0.001,2521.4,2521.3,15.16905307]
[1751720371505,0.001,2521.4,2521.3,20.66715082]
[1751720378936,1e-08,2521.4,2521.3,21.21715082]
[1751720389671,1e-08,2521.4,2521.3,7.20805307]
[1751720390050,1e-08,2521.4,2521.3,15.16705307]
[1751720394982,1e-08,2521.4,2521.3,14.34625307]
[1751720395750,1e-08,2521.4,2521.3,6.38725307]
[1751720396095,1e-08,2521.4,2521.3,14.34625307]
[1751720403282,1e-08,2521.4,2521.3,15.14755307]
[1751720403500,1e-08,2521.4,2521.3,17.73855307]
[1751720403799,1e-08,2521.4,2521.3,27.62355307]
[1751720405396,1e-08,2521.4,2521.3,32.36355307]
[1751720407398,0.043912,2521.5,2521.3,32.36355307]
[1751720407399,1e-08,2521.5,2521.4,15.3173506]
[1751720407602,1e-08,2521.5,2521.4,19.36384308]
[1751720410794,1e-08,2521.5,2521.4,29.24684308]
[1751720417814,1e-08,2521.5,2521.4,19.36384308]
[1751720418014,1e-08,2521.5,2521.4,29.24784308]
[1751720418211,1e-08,2521.5,2521.4,19.36384308]
[1751720418437,1e-08,2521.5,2521.4,29.24684308]
[1751720422259,1e-08,2521.7,2521.6,14.51573604]
[1751720422555,1e-08,2521.7,2521.6,26.75113212]
[1751720422715,1e-08,2521.7,2521.6,26.94873212]
[1751720423335,1e-08,2521.7,2521.6,31.68873212]
[1751720424315,1e-08,2521.7,2521.6,31.88481777]
[1751720424958,1e-08,2521.7,2521.6,31.68873212]
[1751720425114,0.41378492,2522.5,2522.4,3.96447827]
[1751720425421,0.41378492,2522.5,2522.4,11.92247827]
[1751720425610,0.41378492,2522.5,2522.4,12.12007827]
[1751720426727,0.042912,2522.5,2522.4,12.12007827]
[1751720430343,0.042912,2522.5,2522.4,13.72854682]
[1751720432151,0.20676082,2522.9,2522.4,14.55464682]
[1751720432337,0.240512,2523.0,2522.4,14.55464682]
[1751720432338,0.042912,2523.0,2522.9,3.96369257]
[1751720432535,0.41090396,2523.0,2522.9,11.93469257]
[1751720433134,0.042912,2523.0,2522.9,11.93469257]
[1751720434254,0.044912,2523.0,2522.9,11.93469257]
[1751720435226,0.044912,2523.0,2522.9,3.96369257]
[1751720435450,0.044912,2523.0,2522.9,11.93369257]
[1751720438549,0.044912,2523.0,2522.9,3.96369257]
[1751720438752,0.044912,2523.0,2522.9,11.93269257]
[1751720439853,0.044912,2523.0,2522.9,3.96369257]
[1751720440022,0.044912,2523.0,2522.9,11.93169257]
[1751720442259,0.044912,2523.0,2522.9,12.12929257]
[1751720457253,0.39640249,2523.0,2522.9,12.12929257]
[1751720457574,0.044912,2523.0,2522.9,12.12929257]
[1751720457786,0.39640249,2523.0,2522.9,4.16129257]
[1751720458075,0.39640249,2523.0,2522.9,12.12429257]
[1751720458376,0.044912,2523.0,2522.9,12.12429257]
[1751720458579,0.39640249,2523.0,2522.9,12.12429257]
[1751720459578,0.044912,2523.0,2522.9,12.12429257]
[1751720459883,0.39640249,2523.0,2522.9,12.12429257]
[1751720460077,0.044912,2523.0,2522.9,12.12429257]
[1751720460288,0.39640249,2523.0,2522.9,12.12429257]
[1751720462479,0.39629648,2523.0,2522.9,12.12329257]
[1751720467867,0.39666435,2523.0,2522.9,12.12329257]
[1751720468078,0.39666435,2523.0,2522.9,12.12229257]
[1751720468418,0.39666435,2523.0,2522.9,4.16129257]
[1751720468551,0.39666435,2523.0,2522.9,12.12229257]
[1751720473806,0.39798402,2523.0,2522.9,12.90009257]
[1751720474009,0.39798402,2523.0,2522.9,5.55206919]
[1751720474299,0.39798402,2523.0,2522.9,12.12129257]
[1751720474875,0.65288402,2523.0,2522.9,0.1976]
[1751720475077,0.65288402,2523.0,2522.5,0.001]
[1751720475078,0.2549,2522.9,2522.5,0.001]
[1751720475300,0.2549,2522.6,2522.5,0.001]
[1751720475473,1.61276519,2522.6,2522.5,7.969]
[1751720475678,1.96606074,2522.6,2522.5,7.969]
[1751720478102,1.96606074,2522.6,2522.5,0.001]
[1751720478279,1.96606074,2522.6,2522.5,7.97]
[1751720478478,1.96606074,2522.6,2522.5,0.001]
[1751720478708,1.96606074,2522.6,2522.5,7.969]
[1751720479509,1.9837388,2522.6,2522.5,7.969]
[1751720480211,0.62587361,2522.6,2522.5,7.969]
[1751720480907,0.37097361,2522.6,2522.5,7.969]
[1751720481108,0.37097361,2522.6,2522.5,11.93332111]
[1751720483105,0.37097361,2522.6,2522.5,7.972]
[1751720483512,0.37297361,2522.6,2522.5,7.972]
[1751720484702,0.37297361,2522.6,2522.5,11.93632111]
[1751720485222,0.37297361,2522.6,2522.5,7.972]
[1751720487018,0.37297361,2522.6,2522.5,0.001]
[1751720487227,0.37297361,2522.6,2522.5,7.973]
[1751720487426,0.62787361,2522.6,2522.5,7.973]
[1751720488836,0.62787361,2522.6,2522.5,0.001]
[1751720489022,0.82547361,2522.6,2522.5,7.973]
[1751720492097,0.4545,2522.6,2522.5,7.973]
[1751720492297,0.57028322,2522.6,2522.5,7.973]
[1751720493934,0.57028322,2522.6,2522.5,11.93732111]
[1751720494132,0.57028322,2522.6,2522.5,7.973]
[1751720497231,0.57042914,2522.6,2522.5,7.973]
[1751720498033,0.57047726,2522.6,2522.5,7.973]
[1751720503441,0.57087106,2522.6,2522.5,7.973]
[1751720503941,0.57101211,2522.6,2522.5,7.973]
[1751720504852,0.57101211,2522.6,2522.5,0.001]
[1751720504853,1.93088875,2522.6,2522.5,0.001]
[1751720505018,6.1499527,2522.6,2522.5,7.969]
[1751720505543,6.1499527,2522.6,2522.5,0.001]
[1751720505744,6.1499527,2522.6,2522.5,7.969]
[1751720506447,6.15031093,2522.6,2522.5,7.969]
[1751720506619,2.18611977,2522.6,2522.5,7.969]
[1751720508352,6.15028372,2522.6,2522.5,7.969]
[1751720508945,18.08128372,2522.6,2522.5,0.001]
[1751720509117,18.28813256,2522.6,2522.5,0.001]
[1751720509314,18.28817919,2522.6,2522.5,0.001]
[1751720512340,26.68817919,2522.6,2522.5,1e-08]
[1751720512942,12.77455416,2521.7,2521.6,7.975]
[1751720513114,9.18076515,2521.7,2521.6,7.975]
[1751720513314,0.37178976,2521.7,2521.6,7.975]
[1751720513531,0.37178976,2521.7,2521.6,13.52883604]
[1751720514329,0.37178976,2521.7,2521.6,12.73123604]
[1751720514829,0.37178976,2521.7,2521.6,8.7655]
[1751720515031,0.37178976,2521.7,2521.6,7.975]
[1751720516440,0.1976,2521.8,2521.6,7.975]
[1751720518648,0.1976,2521.8,2521.6,11.94071721]
[1751720519922,0.1976,2521.8,2521.6,7.975]
[1751720520333,0.1976,2521.8,2521.5,3.96582021]
[1751720520535,0.1976,2521.8,2521.6,7.978]
[1751720520757,0.20884884,2522.6,2521.6,13.60997486]
[1751720520929,0.40644884,2522.6,2522.5,3.96432111]
[1751720521137,0.1996,2522.6,2522.5,12.79312111]
[1751720521951,0.002,2522.6,2522.5,14.4886386]
[1751720522152,0.002,2522.6,2522.5,14.6862386]
[1751720530141,0.002,2522.6,2522.5,15.2362386]
[1751720531355,0.002,2522.6,2522.5,7.2322386]
[1751720531660,0.002,2522.6,2522.5,15.2352386]
[1751720533372,0.002,2522.6,2522.5,15.2362386]
[1751720535650,0.002,2522.6,2522.5,19.9762386]
[1751720541648,0.002,2522.6,2522.5,29.9762386]
[1751720541977,1e-08,2522.6,2522.5,29.9762386]
[1751720544076,1e-08,2522.6,2522.5,29.9692386]
[1751720544376,1e-08,2522.6,2522.5,19.4182386]
[1751720547378,1e-08,2522.6,2522.5,6.6832386]
[1751720547553,1e-08,2522.6,2522.5,14.6812386]
[1751720551295,1e-08,2522.6,2522.5,4.16292111]
[1751720551500,1e-08,2522.6,2522.5,12.15892111]
[1751720564807,0.37175633,2522.6,2522.5,12.15892111]
[1751720567423,1e-08,2522.6,2522.5,12.15892111]
[1751720567644,0.37173884,2522.6,2522.5,12.15892111]
[1751720567804,0.37173884,2522.6,2522.5,14.0437186]
[1751720568005,1e-08,2522.6,2522.5,14.0437186]
[1751720568721,1e-08,2522.6,2522.5,14.8627186]
[1751720573333,0.37180007,2522.6,2522.5,14.8627186]
[1751720580339,0.37187857,2522.6,2522.5,14.8627186]
[1751720582836,1e-08,2522.6,2522.5,4.16292111]
[1751720583040,1e-08,2522.6,2522.5,12.14592111]
[1751720583639,1e-08,2522.6,2522.5,4.16292111]
[1751720584011,1e-08,2522.6,2522.5,12.14592111]
[1751720593446,1e-08,2522.6,2522.5,4.16292111]
[1751720593745,1e-08,2522.6,2522.5,12.14392111]
[1751720599046,1e-08,2522.6,2522.5,4.16292111]
[1751720599241,1e-08,2522.6,2522.5,12.14292111]
[1751720601838,1e-08,2522.6,2522.5,0.1986]
[1751720602039,0.25490001,2522.6,2522.5,7.98]
[1751720604047,0.25490001,2522.6,2522.5,7.979]
[1751720604447,0.25490001,2522.6,2522.5,7.98]
[1751720604647,0.45250001,2522.6,2522.5,7.98]
[1751720604848,0.89414174,2522.6,2522.5,7.98]
[1751720606353,4.85830569,2522.6,2522.5,0.001]
[1751720606851,4.85830569,2522.6,2522.5,7.98]
[1751720607622,4.85830569,2522.6,2522.5,0.001]
[1751720623659,5.22921198,2522.6,2522.5,0.001]
[1751720627072,4.85830569,2522.6,2522.5,0.001]
[1751720627258,5.22935135,2522.6,2522.5,0.001]
[1751720637743,5.23040969,2522.6,2522.5,0.001]
[1751720640683,4.85830569,2522.6,2522.5,0.001]
[1751720640849,5.23041033,2522.6,2522.5,0.001]
[1751720642896,1.01134638,2522.6,2522.5,0.001]
[1751720643195,0.56970397,2522.6,2522.5,0.001]
[1751720645690,4.53386792,2522.6,2522.5,0.001]
[1751720648891,4.16176396,2522.6,2522.5,0.001]
[1751720649099,4.53382076,2522.6,2522.5,0.001]
[1751720651889,4.16176396,2522.6,2522.5,0.001]
[1751720652096,4.53382605,2522.6,2522.5,0.001]
[1751720655203,4.53382877,2522.6,2522.5,0.001]
[1751720656101,7.50428132,2522.6,2522.5,0.001]
[1751720657988,7.75918132,2522.6,2522.5,0.001]
[1751720660810,7.75918373,2522.6,2522.5,0.001]
[1751720661680,7.50428373,2522.6,2522.5,0.001]
[1751720663814,13.91483638,2522.6,2522.5,0.001]
[1751720667735,15.84583638,2522.6,2522.5,0.001]
[1751720675424,15.47376916,2522.6,2522.5,0.001]
[1751720675612,15.84584071,2522.6,2522.5,0.001]
[1751720679526,13.91484071,2522.6,2522.5,0.001]
[1751720679887,7.50428806,2522.6,2522.5,0.001]
[1751720680142,0.56967156,2522.6,2522.5,0.001]
[1751720681505,4.53383551,2522.6,2522.5,0.001]
[1751720681706,4.53382658,2522.6,2522.5,0.001]
[1751720684630,4.53384286,2522.6,2522.5,0.001]
[1751720687933,10.94439551,2522.6,2522.5,0.001]
[1751720693410,10.57231661,2522.6,2522.5,0.001]
[1751720693641,10.94440183,2522.6,2522.5,0.001]
[1751720698051,13.64902442,2522.6,2522.5,0.001]
[1751720701357,13.64903168,2522.6,2522.5,0.001]
[1751720703362,10.94440909,2522.6,2522.5,0.001]
[1751720705562,10.57231661,2522.6,2522.5,0.001]
[1751720708476,10.82721661,2522.6,2522.5,0.001]
[1751720709982,11.19930433,2522.6,2522.5,0.001]
[1751720711872,11.19929978,2522.6,2522.5,0.001]
[1751720712042,13.92941106,2522.6,2522.5,0.001]
[1751720715566,13.55732789,2522.6,2522.5,0.001]
[1751720715760,13.92940346,2522.6,2522.5,0.001]
[1751720726682,13.67450346,2522.6,2522.5,0.001]
[1751720737500,0.56967558,2522.6,2522.5,0.001]
[1751720737869,0.56967558,2522.6,2521.3,14.74]
[1751720738183,0.37207557,2522.5,2522.3,3.96463545]
[1751720738498,0.37207557,2522.4,2522.3,3.96463545]
[1751720739201,0.37196526,2522.4,2522.3,3.96463545]
[1751720739998,0.37196526,2522.4,2522.2,3.96470387]
[1751720740180,0.37196526,2522.3,2522.2,3.96470387]
[1751720741091,0.37196526,2522.3,2522.2,6.35182261]
[1751720742381,0.37196526,2522.3,2522.2,6.39147053]
[1751720742591,0.37196526,2522.3,2522.2,6.35182261]
[1751720748008,0.128736,2522.5,2522.4,3.96447827]
[1751720748304,0.50009919,2522.5,2522.4,3.96447827]
[1751720752407,0.50009919,2522.5,2522.4,4.75957827]
[1751720753181,0.50009919,2522.5,2522.4,0.7951]
[1751720756712,0.50001877,2522.5,2522.4,0.7951]
[1751720757212,0.50001877,2522.5,2522.4,4.75957827]
[1751720757811,0.50001877,2522.5,2522.4,5.79297151]
[1751720760117,0.50001877,2522.5,2522.4,13.75997151]
[1751720761992,0.50001877,2522.5,2522.4,9.79549324]
[1751720762190,0.50001877,2522.5,2522.4,8.7621]
[1751720763031,0.50001877,2522.5,2522.4,12.72657827]
[1751720763696,0.50017528,2522.5,2522.4,12.72657827]
[1751720767631,0.50048058,2522.5,2522.4,12.72657827]
[1751720769631,0.50056989,2522.5,2522.4,12.72657827]
[1751720772248,0.50056989,2522.5,2522.3,0.1976]
[1751720772414,6.78238654,2522.4,2522.1,3.96485104]
[1751720772741,0.37183389,2522.3,2522.2,8.1636]
[1751720773101,0.37183389,2522.3,2522.2,7.966]
[1751720773303,0.37183389,2522.3,2522.2,3.96479264]
[1751720773502,0.326336,2522.5,2522.3,3.96453137]
[1751720773739,0.37199899,2522.4,2522.3,3.96453137]
[1751720774046,0.37199899,2522.4,2522.3,11.93053137]
[1751720774805,0.37199899,2522.4,2522.3,12.12813137]
[1751720776640,0.128736,2522.5,2522.4,3.96447827]
[1751720776825,0.5007216,2522.5,2522.4,3.96447827]
[1751720777544,0.5007216,2522.5,2522.3,12.12814944]
[1751720777856,10.3719856,2522.4,2522.0,3.96502245]
[1751720778047,0.3719856,2522.3,2522.1,7.966]
[1751720778207,0.3719856,2522.2,2522.0,3.96502245]
[1751720778408,6.60815265,2522.3,2522.1,7.966]
[1751720778629,0.37187634,2522.2,2521.9,0.1976]
[1751720778951,0.37187634,2522.1,2522.0,7.966]
[1751720779152,6.78242899,2522.1,2521.9,0.1976]
[1751720779351,6.41055265,2522.1,2522.0,7.966]
[1751720779538,6.78235604,2522.1,2522.0,7.966]
[1751720780050,6.86818004,2522.1,2522.0,7.966]
[1751720781154,0.45762739,2522.1,2522.0,7.966]
[1751720783644,0.45762739,2522.1,2522.0,11.93110705]
[1751720784757,0.45762739,2522.1,2522.0,13.62229246]
[1751720785158,0.45762739,2522.1,2522.0,13.81989246]
[1751720786917,0.45762739,2522.1,2522.0,14.63779246]
[1751720787652,0.085824,2522.1,2522.0,14.63779246]
[1751720832281,0.45782093,2522.1,2522.0,14.63779246]
[1751720836031,0.042912,2522.5,2522.4,3.96447827]
[1751720836179,0.042912,2522.5,2522.4,11.96912305]
[1751720836529,0.042912,2522.5,2522.4,12.12707827]
[1751720844311,0.042912,2522.5,2522.4,19.3159893]
[1751720844610,1e-08,2522.6,2522.5,4.74462111]
[1751720844813,1e-08,2522.6,2522.5,7.11232373]
[1751720849613,1e-08,2522.6,2522.5,6.33202373]
[1751720849813,0.79140001,2522.6,2522.5,3.96432111]
[1751720850015,1.16264181,2522.6,2522.5,11.92832111]
[1751720851825,1.16264181,2522.6,2522.5,3.96432111]
[1751720852018,1.16264181,2522.6,2522.5,11.92832111]
[1751720854531,0.79140001,2522.6,2522.5,11.92832111]
[1751720868332,1e-08,2522.6,2522.5,11.92832111]
[1751720870145,1e-08,2522.6,2522.5,13.53735845]
[1751720872830,1e-08,2522.6,2522.5,14.33435845]
[1751720878222,1e-08,2522.6,2522.5,14.88435845]
[1751720878417,1e-08,2522.6,2522.5,24.88435845]
[1751720882370,1e-08,2522.6,2522.5,25.17739368]
[1751720883470,1e-08,2522.6,2522.5,29.35739368]
[1751720883643,1e-08,2522.6,2522.5,25.17739368]
[1751720886069,1e-08,2522.6,2522.5,24.33335845]
[1751720886537,1e-08,2522.6,2522.5,16.92035845]
[1751720886745,1e-08,2522.6,2522.5,5.57335845]
[1751720887167,1e-08,2522.6,2522.5,13.54035845]
[1751720901598,0.01,2523.2,2522.5,13.54035845]
[1751720901599,0.01,2523.2,2523.1,3.96337838]
[1751720901892,0.01,2523.2,2523.1,11.92737838]
[1751720903187,0.38120595,2523.2,2523.1,11.92737838]
[1751720904070,0.01,2523.2,2523.1,11.92737838]
[1751720904269,0.01,2523.2,2523.1,13.5164668]
[1751720904482,0.01,2523.2,2523.1,11.92737838]
[1751720911608,0.01,2523.2,2523.1,12.12497838]
[1751720913902,1.17854204,2523.2,2523.1,12.13197838]
[1751720914999,1.17854204,2523.2,2523.1,4.16097838]
[1751720915208,1.17854204,2523.2,2523.1,12.13397838]
[1751720920718,1.17854204,2523.2,2523.1,4.16097838]
[1751720920893,1.17854204,2523.2,2523.1,12.13197838]
[1751720928298,0.38104204,2523.2,2523.1,12.13197838]
[1751720933426,0.38165939,2523.2,2523.1,12.13197838]
[1751720938632,0.38170196,2523.2,2523.1,12.13197838]
[1751720944340,0.381783,2523.2,2523.1,12.13197838]
[1751720944833,0.381783,2523.2,2523.1,4.16097838]
[1751720945037,0.381783,2523.2,2523.1,11.92937838]
[1751720946923,0.381783,2523.2,2523.1,12.12697838]
[1751720947135,0.381783,2523.2,2523.1,13.8163668]
[1751720949337,0.381783,2523.2,2523.1,12.12697838]
[1751720954114,0.38182717,2523.2,2523.1,12.12697838]
[1751720963553,0.38182717,2523.2,2523.1,4.16097838]
[1751720963867,0.38182717,2523.2,2523.1,11.92637838]
[1751720964619,0.33182717,2523.2,2523.1,11.92637838]
[1751720968656,0.8059,2523.1,2523.0,4.16102313]
[1751720968830,7.21076071,2523.1,2523.0,12.12402313]
[1751720969945,7.16076071,2523.1,2523.0,12.12402313]
[1751720971130,6.40486071,2523.3,2523.2,3.9632213]
[1751720971346,6.40486071,2523.3,2523.2,11.9272213]
[1751720973860,6.35486071,2523.3,2523.2,11.9272213]
[1751720975755,0.8148,2523.4,2523.3,3.96306424]
[1751720976562,1.18631579,2523.4,2523.3,3.96306424]
[1751720977868,1.18631579,2523.4,2523.2,11.92714471]
[1751720978164,0.37151579,2523.3,2523.2,11.92714471]
[1751720981871,0.37150418,2523.3,2523.2,11.92714471]
[1751720984767,10.8148,2523.4,2523.3,3.96306424]
[1751720984975,10.37151544,2523.4,2523.3,3.96306424]
[1751720985451,10.37151544,2523.4,2523.2,11.92713367]
[1751720985650,0.37151544,2523.3,2523.2,11.92713367]
[1751720987780,0.37151544,2523.3,2523.2,7.964]
[1751720988284,6.77637615,2523.3,2523.2,7.964]
[1751720988757,9.28272993,2523.3,2523.2,7.964]